bitfinex-derivatives/quotes_BTCF0:USTF0_20251118
["timestamp","ask_amount","ask_price","bid_price","bid_amount"]
[1763474173864,0.06147803,91480.0,91471.0,0.26436]
[1763474173865,0.04604,91472.0,91471.0,0.26436]
[1763474176768,0.04604,91472.0,91471.0,0.28664]
[1763474176975,0.04604,91472.0,91471.0,0.3092]
[1763474177271,0.04604,91472.0,91471.0,0.28664]
[1763474177572,0.04604,91472.0,91471.0,0.26436]
[1763474178068,0.04604,91463.0,91452.0,0.2488]
[1763474180165,0.04604,91463.0,91462.0,4.05e-06]
[1763474180373,0.04227,91453.0,91452.0,0.2488]
[1763474181263,0.04227,91453.0,91452.0,0.2705]
[1763474181465,0.04227,91453.0,91452.0,0.29292]
[1763474184172,0.02107,91453.0,91452.0,0.29292]
[1763474184668,0.04227,91453.0,91452.0,0.29292]
[1763474184891,0.00016405,91462.0,91452.0,0.29292]
[1763474185178,0.04243405,91462.0,91461.0,0.04412]
[1763474185768,0.04227,91453.0,91452.0,0.29292]
[1763474186169,0.04243405,91462.0,91461.0,0.04412]
[1763474186775,0.04227,91453.0,91452.0,0.29292]
[1763474188284,0.04227,91453.0,91452.0,0.2488]
[1763474189282,0.04227,91453.0,91443.0,0.00016405]
[1763474189283,0.04303,91444.0,91443.0,0.04475405]
[1763474189675,0.0129,91456.0,91443.0,0.04475405]
[1763474189880,0.04522803,91450.0,91449.0,0.04459]
[1763474190181,0.04522803,91450.0,91449.0,0.05725]
[1763474190483,0.02419803,91450.0,91449.0,0.05725]
[1763474190978,0.00219803,91450.0,91449.0,0.05725]
[1763474192280,0.00016405,91462.0,91449.0,0.05725]
[1763474192471,0.04522803,91460.0,91459.0,0.02233]
[1763474192677,0.04522803,91460.0,91459.0,0.04459]
[1763474192983,0.00219803,91460.0,91459.0,0.04459]
[1763474193174,0.0129,91458.0,91449.0,0.02233]
[1763474193377,0.04303,91450.0,91449.0,0.05725]
[1763474193577,0.0129,91458.0,91457.0,0.04459]
[1763474193578,0.04303,91458.0,91457.0,0.04459]
[1763474194082,0.00219803,91460.0,91459.0,0.04459]
[1763474194083,0.04522803,91460.0,91459.0,0.04459]
[1763474195589,0.00219803,91460.0,91459.0,0.04459]
[1763474196483,0.02419803,91460.0,91459.0,0.04459]
[1763474196983,0.00219803,91460.0,91459.0,0.04459]
[1763474197388,0.00016405,91462.0,91461.0,0.04459]
[1763474200685,0.00016405,91462.0,91456.0,0.27694]
[1763474200686,0.022,91484.0,91483.0,0.04459]
[1763474200886,0.04303,91484.0,91483.0,0.04459]
[1763474202195,0.00027327,91486.0,91485.0,0.04459]
[1763474202789,0.02227327,91486.0,91485.0,0.04459]
[1763474203580,0.04330327,91486.0,91485.0,0.04459]
[1763474203781,0.02227327,91486.0,91485.0,0.04459]
[1763474204088,0.04330327,91486.0,91485.0,0.04459]
[1763474204290,0.04430327,91486.0,91485.0,0.04459]
[1763474204490,0.02327327,91486.0,91485.0,0.04459]
[1763474204694,0.00227327,91486.0,91485.0,0.04459]
[1763474204894,0.02427327,91486.0,91485.0,0.04459]
[1763474205998,0.04530327,91486.0,91485.0,0.04459]
[1763474206387,0.00227327,91486.0,91485.0,0.04459]
[1763474206796,0.02427327,91486.0,91485.0,0.04459]
[1763474207404,0.00227327,91486.0,91485.0,0.04459]
[1763474208295,0.02327327,91486.0,91485.0,0.04459]
[1763474208491,0.00127327,91486.0,91485.0,0.04459]
[1763474209693,0.00027327,91486.0,91485.0,0.04459]
[1763474210902,0.04330327,91486.0,91485.0,0.04459]
[1763474211596,0.02227327,91486.0,91485.0,0.04459]
[1763474211900,0.04330327,91486.0,91485.0,0.04459]
[1763474212597,0.00027327,91486.0,91485.0,0.04459]
[1763474213400,0.04330327,91486.0,91485.0,0.04459]
[1763474216301,0.04330327,91486.0,91485.0,0.02233]
[1763474216504,0.04330327,91486.0,91474.0,0.00016405]
[1763474216505,0.04303,91475.0,91474.0,0.04475405]
[1763474216700,0.04303,91475.0,91474.0,0.30895405]
[1763474217006,0.04330327,91486.0,91485.0,0.04459]
[1763474217508,0.04330327,91486.0,91485.0,0.02233]
[1763474218004,0.04330327,91486.0,91474.0,0.30931405]
[1763474218005,0.02156,91475.0,91474.0,0.30931405]
[1763474218507,0.02156,91475.0,91474.0,0.31031405]
[1763474218810,0.04448,91475.0,91474.0,0.31031405]
[1763474220102,0.04448,91475.0,91474.0,0.30931405]
[1763474221205,0.04448,91475.0,91474.0,0.00016405]
[1763474222204,0.04448,91475.0,91474.0,0.02445405]
[1763474222507,0.04448,91475.0,91474.0,0.00116405]
[1763474222913,0.04448,91475.0,91474.0,0.00016405]
[1763474223506,0.04475327,91486.0,91485.0,0.04495]
[1763474230312,0.04475327,91486.0,91485.0,0.02329]
[1763474230812,0.00027327,91486.0,91485.0,0.04495]
[1763474233218,0.04475327,91486.0,91485.0,0.04495]
[1763474234612,0.00027327,91486.0,91485.0,0.04495]
[1763474235513,0.04475327,91486.0,91485.0,0.04495]
[1763474236217,0.00027327,91486.0,91485.0,0.04495]
[1763474236512,0.04475327,91486.0,91485.0,0.04495]
[1763474236907,0.04475327,91486.0,91485.0,0.02329]
[1763474237108,0.04448,91479.0,91478.0,0.04495]
[1763474241116,0.04448,91479.0,91478.0,0.02329]
[1763474241321,0.04437,91475.0,91474.0,0.04481405]
[1763474242918,0.04437,91475.0,91474.0,0.02307405]
[1763474243125,0.01328,91476.0,91455.0,0.09118323]
[1763474243126,0.04437,91463.0,91460.0,0.03937503]
[1763474243429,0.04437,91456.0,91455.0,0.02291]
[1763474244008,0.04437,91456.0,91455.0,0.04465]
[1763474244408,0.04437,91456.0,91455.0,0.02291]
[1763474244630,0.04437,91451.0,91450.0,0.26416]
[1763474246314,0.04437,91451.0,91450.0,0.30881]
[1763474247419,0.04437,91451.0,91450.0,0.26416]
[1763474247622,0.04437,91451.0,91446.0,0.00016405]
[1763474247623,0.04378,91447.0,91446.0,0.00016405]
[1763474247816,0.04378,91447.0,91446.0,0.04312405]
[1763474249722,0.04394405,91465.0,91464.0,0.04296]
[1763474252030,0.04378,91449.0,91448.0,0.05663]
[1763474254324,0.00219803,91450.0,91449.0,0.04296]
[1763474255023,0.04597803,91450.0,91449.0,0.04296]
[1763474255831,0.04378,91447.0,91446.0,0.02183405]
[1763474256627,0.04378,91447.0,91446.0,0.00016405]
[1763474256829,0.04378,91447.0,91446.0,0.04312405]
[1763474257624,0.04378,91447.0,91446.0,0.00016405]
[1763474257825,0.04378,91447.0,91446.0,0.02183405]
[1763474258030,0.04378,91447.0,91446.0,0.04312405]
[1763474263825,0.04378,91447.0,91446.0,0.02183405]
[1763474264337,0.04378,91447.0,91446.0,0.00016405]
[1763474264540,0.04378,91435.0,91434.0,0.3072]
[1763474266633,0.04378,91426.0,91425.0,0.04312405]
[1763474267030,0.00219803,91430.0,91425.0,0.04312405]
[1763474267229,0.04597803,91430.0,91429.0,0.04296]
[1763474269237,0.00219803,91430.0,91429.0,0.04296]
[1763474269549,0.04394405,91444.0,91443.0,0.04296]
[1763474269726,0.04394405,91444.0,91434.0,0.01367]
[1763474269935,0.04378,91435.0,91434.0,0.05663]
[1763474271136,0.04378,91426.0,91425.0,0.04312405]
[1763474271840,0.0211,91426.0,91425.0,0.04312405]
[1763474272632,0.04378,91426.0,91425.0,0.04312405]
[1763474273035,0.04378,91426.0,91425.0,0.02183405]
[1763474273436,0.04378,91426.0,91425.0,0.04312405]
[1763474278140,0.04378,91426.0,91425.0,0.00016405]
[1763474278339,0.04454,91418.0,91417.0,9.237e-05]
[1763474280244,0.04454,91418.0,91417.0,0.04347237]
[1763474280434,0.04454,91418.0,91417.0,9.237e-05]
[1763474281641,0.04454,91418.0,91417.0,0.02190237]
[1763474281834,0.04454,91418.0,91417.0,9.237e-05]
[1763474282233,0.04454,91418.0,91392.0,0.01394]
[1763474282234,0.04454,91407.0,91393.0,0.03937503]
[1763474282449,0.04454,91394.0,91393.0,0.04338]
[1763474283335,9.237e-05,91394.0,91393.0,0.04338]
[1763474283940,9.237e-05,91394.0,91393.0,0.04438]
[1763474284139,9.237e-05,91394.0,91393.0,0.04538]
[1763474284547,9.237e-05,91394.0,91393.0,0.04438]
[1763474284947,9.237e-05,91394.0,91393.0,0.04338]
[1763474286954,0.00016405,91403.0,91402.0,0.04338]
[1763474287451,0.02228405,91403.0,91402.0,0.04338]
[1763474287654,0.04470405,91403.0,91402.0,0.04338]
[1763474289351,0.00016405,91403.0,91402.0,0.04338]
[1763474293050,4.05e-06,91403.0,91402.0,0.04338]
[1763474293256,0.10551331,91420.0,91416.0,0.03575]
[1763474293257,0.04454,91417.0,91416.0,0.03575]
[1763474293457,0.04454,91417.0,91416.0,0.05732]
[1763474294055,0.10771134,91420.0,91419.0,0.04338]
[1763474294056,0.00219803,91420.0,91419.0,0.04338]
[1763474295648,0.00319803,91420.0,91419.0,0.04338]
[1763474296449,0.04773803,91420.0,91419.0,0.04338]
[1763474296657,0.02531803,91420.0,91419.0,0.04338]
[1763474296856,0.00319803,91420.0,91419.0,0.04338]
[1763474297462,0.001,91420.0,91419.0,0.1528869]
[1763474297652,0.00016405,91429.0,91428.0,0.04338]
[1763474298154,0.02228405,91429.0,91428.0,0.04338]
[1763474298348,0.00016405,91429.0,91428.0,0.04338]
[1763474300252,0.04343,91446.0,91445.0,0.04499]
[1763474301656,0.04443,91446.0,91445.0,0.04499]
[1763474302045,0.04543,91446.0,91445.0,0.04499]
[1763474302355,0.002,91446.0,91445.0,0.04499]
[1763474305551,0.00016405,91455.0,91454.0,0.04463]
[1763474305857,0.03925779,91480.0,91456.0,0.122372]
[1763474306058,0.04516803,91470.0,91469.0,0.04463]
[1763474306652,0.00219803,91470.0,91469.0,0.04463]
[1763474307558,0.04557803,91470.0,91469.0,0.04463]
[1763474309054,0.00016405,91479.0,91478.0,0.04288]
[1763474309455,0.04472405,91479.0,91478.0,0.04288]
[1763474312463,0.04772405,91479.0,91478.0,0.04288]
[1763474313558,0.00316405,91479.0,91478.0,0.04288]
[1763474315659,0.00016405,91479.0,91478.0,0.04288]
[1763474315868,0.00116405,91479.0,91478.0,0.04288]
[1763474316667,0.04572405,91479.0,91478.0,0.04288]
[1763474317061,0.02400405,91479.0,91478.0,0.04288]
[1763474317468,0.00116405,91479.0,91478.0,0.04288]
[1763474320074,0.04572405,91479.0,91478.0,0.04288]
[1763474321271,0.02400405,91479.0,91478.0,0.04288]
[1763474321470,0.00116405,91479.0,91478.0,0.04288]
[1763474321672,0.02400405,91479.0,91478.0,0.04288]
[1763474321966,0.04572405,91479.0,91478.0,0.04288]
[1763474322375,0.02400405,91479.0,91478.0,0.04288]
[1763474322666,0.04572405,91479.0,91478.0,0.04288]
[1763474323570,0.04472405,91479.0,91478.0,0.04288]
[1763474324267,0.00016405,91479.0,91478.0,0.04288]
[1763474324973,0.02300405,91479.0,91478.0,0.04288]
[1763474326275,0.04472405,91479.0,91478.0,0.04288]
[1763474326468,0.00016405,91479.0,91464.0,0.04288]
[1763474326661,0.04456,91465.0,91464.0,0.02176]
[1763474326861,0.04456,91465.0,91464.0,0.04288]
[1763474327775,0.04456,91465.0,91464.0,0.05634]
[1763474329167,0.04456,91465.0,91464.0,0.04288]
[1763474329379,0.04456,91465.0,91464.0,0.05634]
[1763474330474,0.00988,91476.0,91475.0,0.04288]
[1763474330475,0.04456,91476.0,91475.0,0.04288]
[1763474330677,0.04456,91465.0,91464.0,0.05634]
[1763474335074,0.08381779,91477.0,91476.0,0.04288]
[1763474335275,0.04456,91477.0,91476.0,0.04288]
[1763474336483,0.04456,91477.0,91476.0,0.05634]
[1763474336675,0.04456,91470.0,91469.0,0.05634]
[1763474336876,0.04675803,91470.0,91469.0,0.04288]
[1763474337776,0.04675803,91470.0,91469.0,0.05682]
[1763474339182,0.03938044,91479.0,91478.0,0.04566]
[1763474339379,0.04473405,91479.0,91478.0,0.04566]
[1763474339685,0.04473405,91479.0,91469.0,0.04566]
[1763474339686,0.04457,91470.0,91469.0,0.04566]
[1763474339888,0.04676803,91470.0,91469.0,0.04566]
[1763474340475,0.04676803,91470.0,91469.0,0.0596]
[1763474342277,0.00219803,91470.0,91469.0,0.0596]
[1763474343082,0.04676803,91470.0,91469.0,0.0596]
[1763474344284,0.00219803,91470.0,91469.0,0.0596]
[1763474348191,0.04676803,91470.0,91469.0,0.0596]
[1763474349090,0.00219803,91470.0,91469.0,0.0596]
[1763474349495,0.04676803,91470.0,91469.0,0.0596]
[1763474350597,0.00219803,91470.0,91469.0,0.0596]
[1763474350896,0.00016405,91479.0,91478.0,0.04566]
[1763474352497,0.02177405,91479.0,91478.0,0.04566]
[1763474352797,0.04473405,91479.0,91478.0,0.04566]
[1763474353392,0.00016405,91479.0,91478.0,0.04566]
[1763474355492,0.02177405,91479.0,91478.0,0.04566]
[1763474356902,0.04473405,91479.0,91478.0,0.04566]
[1763474358703,0.04473405,91479.0,91470.0,0.04566]
[1763474358704,0.04457,91471.0,91470.0,0.04566]
[1763474360098,0.04457,91471.0,91462.0,0.03937503]
[1763474360099,0.04322,91465.0,91464.0,0.04566]
[1763474360795,0.04338405,91479.0,91478.0,0.02226]
[1763474360989,0.04338405,91479.0,91478.0,0.04499]
[1763474362798,0.00016405,91479.0,91478.0,0.04499]
[1763474364897,0.00016405,91479.0,91478.0,0.1544263]
[1763474366103,0.00016405,91479.0,91478.0,0.04499]
[1763474368394,0.00016405,91479.0,91478.0,0.30903]
[1763474368600,0.00027327,91486.0,91485.0,0.04374]
[1763474370803,0.00016405,91495.0,91494.0,0.04289]
[1763474371302,0.00016405,91495.0,91490.0,0.0127]
[1763474371303,0.04406,91509.0,91508.0,0.04289]
[1763474372209,0.02236,91509.0,91508.0,0.04289]
[1763474372413,0.00219803,91510.0,91509.0,0.04289]
[1763474372607,0.00016335,91518.0,91504.0,0.0127]
[1763474372608,0.04422335,91518.0,91517.0,0.04289]
[1763474372813,0.02252335,91518.0,91517.0,0.04289]
[1763474373902,0.02352335,91518.0,91517.0,0.04289]
[1763474374300,0.04522335,91518.0,91517.0,0.04289]
[1763474375212,0.02352335,91518.0,91517.0,0.04289]
[1763474375408,0.00116335,91518.0,91517.0,0.04289]
[1763474375610,3.35e-06,91518.0,91517.0,0.04289]
[1763474375813,3.35e-06,91518.0,91516.0,0.1093907]
[1763474375814,0.03921639,91544.0,91539.0,0.05253]
[1763474376107,0.04625803,91540.0,91539.0,0.05253]
[1763474377099,0.00519803,91540.0,91539.0,0.05253]
[1763474377814,0.02755803,91540.0,91539.0,0.05253]
[1763474378009,0.02555803,91540.0,91539.0,0.05253]
[1763474378613,0.04725803,91540.0,91539.0,0.05253]
[1763474378911,0.02555803,91540.0,91539.0,0.05253]
[1763474379600,0.00319803,91540.0,91539.0,0.05253]
[1763474379809,0.001,91540.0,91539.0,0.05253]
[1763474383026,0.001,91540.0,91539.0,0.1618934]
[1763474383916,0.001,91540.0,91539.0,0.05253]
[1763474384120,0.04725803,91540.0,91539.0,0.05253]
[1763474384413,0.04725803,91540.0,91539.0,0.31645]
[1763474386421,0.04725803,91540.0,91539.0,0.02141]
[1763474387024,0.04725803,91540.0,91539.0,0.04289]
[1763474387616,0.04725803,91540.0,91539.0,0.05559]
[1763474387817,0.04625803,91540.0,91539.0,0.05559]
[1763474389822,0.04625803,91540.0,91539.0,0.04289]
[1763474390329,0.04625803,91540.0,91539.0,0.02141]
[1763474391024,0.04625803,91540.0,91539.0,0.04289]
[1763474391923,0.04625803,91540.0,91539.0,0.05559]
[1763474394122,0.04625803,91540.0,91539.0,0.04289]
[1763474394323,0.04625803,91540.0,91532.0,0.18877]
[1763474394324,0.04406,91533.0,91532.0,0.18877]
[1763474394626,0.04406,91533.0,91532.0,0.02141]
[1763474395222,0.02236,91533.0,91532.0,0.05559]
[1763474395433,0.04406,91533.0,91532.0,0.05559]
[1763474398024,0.21050894,91542.0,91532.0,0.05559]
[1763474398230,0.14751447,91542.0,91541.0,0.04529]
[1763474398429,0.04226,91542.0,91541.0,0.04529]
[1763474400333,0.04226,91533.0,91532.0,0.04529]
[1763474400533,0.04226,91533.0,91532.0,0.05901]
[1763474401223,0.04226,91533.0,91532.0,0.04529]
[1763474402026,0.04226,91531.0,91530.0,0.00016386]
[1763474402230,0.04226,91511.0,91510.0,0.04529]
[1763474405628,0.04226,91511.0,91504.0,0.01372]
[1763474405629,0.00219803,91510.0,91504.0,0.02283]
[1763474405940,0.00219803,91510.0,91501.0,0.04545386]
[1763474405941,0.04226,91502.0,91501.0,0.04545386]
[1763474407243,0.04226,91502.0,91501.0,0.04645386]
[1763474407438,0.18677802,91514.0,91513.0,0.04529]
[1763474407638,0.04226,91514.0,91513.0,0.04529]
[1763474407936,0.02118,91514.0,91513.0,0.04529]
[1763474408737,0.04226,91514.0,91513.0,0.04529]
[1763474409336,0.14468158,91520.0,91519.0,0.1546772]
[1763474409337,0.00016356,91520.0,91519.0,0.1546772]
[1763474409741,0.00220159,91520.0,91519.0,0.04529]
[1763474409930,3.56e-06,91520.0,91517.0,0.1093896]
[1763474410328,0.10525447,91530.0,91529.0,0.04529]
[1763474410540,0.29203249,91540.0,91539.0,0.04529]
[1763474410739,0.08372158,91540.0,91539.0,0.04529]
[1763474412042,0.04445803,91540.0,91539.0,0.04529]
[1763474413841,0.04645803,91540.0,91539.0,0.04529]
[1763474414441,0.00419803,91540.0,91539.0,0.04529]
[1763474415039,0.04645803,91540.0,91539.0,0.04529]
[1763474415945,0.02537803,91540.0,91539.0,0.04529]
[1763474416347,0.00419803,91540.0,91539.0,0.04529]
[1763474416541,0.002,91540.0,91539.0,0.04529]
[1763474418048,0.00027303,91566.0,91565.0,0.04529]
[1763474418244,0.04253303,91566.0,91565.0,0.04529]
[1763474418544,0.04253303,91566.0,91556.0,0.04545386]
[1763474418545,0.04226,91557.0,91556.0,0.04545386]
[1763474419546,0.02118,91557.0,91556.0,0.04545386]
[1763474420143,0.00219803,91560.0,91556.0,0.02262386]
[1763474420349,0.02337803,91560.0,91559.0,0.04529]
[1763474421348,0.04445803,91560.0,91559.0,0.04529]
[1763474421944,0.00219803,91560.0,91559.0,0.04529]
[1763474422251,0.04536803,91560.0,91559.0,0.04529]
[1763474423863,0.02421803,91560.0,91559.0,0.04529]
[1763474424055,0.00027303,91566.0,91556.0,0.10950686]
[1763474424056,0.00027303,91566.0,91565.0,0.04515]
[1763474424299,0.04344303,91566.0,91565.0,0.04515]
[1763474425747,0.00027303,91566.0,91565.0,0.04515]
[1763474426942,0.04317,91589.0,91588.0,0.04515]
[1763474428451,0.04417,91589.0,91588.0,0.04515]
[1763474428840,0.001,91589.0,91579.0,0.00016386]
[1763474429049,0.02289,91545.0,91544.0,0.06206158]
[1763474429243,0.04549,91538.0,91537.0,0.02294]
[1763474429454,0.04549,91538.0,91537.0,0.04472]
[1763474430557,0.00219803,91540.0,91536.0,0.01307]
[1763474430558,0.00219803,91540.0,91539.0,0.04472]
[1763474432260,0.04768803,91540.0,91539.0,0.04572]
[1763474433550,0.02479803,91540.0,91539.0,0.04572]
[1763474434352,0.04768803,91540.0,91539.0,0.04572]
[1763474434551,0.04768803,91540.0,91539.0,0.001]
[1763474434959,0.04449,91529.0,91528.0,0.00016386]
[1763474435962,0.04349,91529.0,91528.0,0.00016386]
[1763474436164,0.04349,91529.0,91495.0,0.03912158]
[1763474436165,0.04549,91527.0,91495.0,0.03912158]
[1763474436353,0.01187803,91520.0,91495.0,0.03912158]
[1763474436761,0.01187803,91520.0,91496.0,0.1094138]
[1763474436960,0.00219803,91520.0,91496.0,0.1094138]
[1763474437157,0.04768803,91520.0,91519.0,0.02294]
[1763474437363,0.04768803,91520.0,91519.0,0.04472]
[1763474439369,0.04768803,91520.0,91519.0,0.04572]
[1763474440961,0.05736803,91520.0,91519.0,0.001]
[1763474441364,0.04549,91495.0,91494.0,0.02294]
[1763474441567,0.04549,91495.0,91494.0,0.04472]
[1763474441773,0.0119,91510.0,91494.0,0.04472]
[1763474441966,0.0119,91510.0,91490.0,0.01317976]
[1763474441967,0.04768803,91500.0,91499.0,0.04472]
[1763474442166,0.04768803,91500.0,91499.0,0.02294]
[1763474442770,0.04768803,91500.0,91499.0,0.04472]
[1763474443072,0.00219803,91500.0,91499.0,0.04472]
[1763474443376,0.00219803,91500.0,91499.0,0.04672]
[1763474443377,0.04768803,91500.0,91499.0,0.04672]
[1763474443571,0.04768803,91500.0,91499.0,0.002]
[1763474444675,0.04768803,91500.0,91499.0,0.003]
[1763474445269,0.04768803,91500.0,91499.0,0.04772]
[1763474445475,0.04768803,91500.0,91499.0,0.02594]
[1763474445678,0.04768803,91500.0,91499.0,0.003]
[1763474446374,0.04768803,91500.0,91499.0,0.02594]
[1763474447985,0.00219803,91500.0,91499.0,0.04772]
[1763474449183,0.04768803,91500.0,91499.0,0.04772]
[1763474449682,0.04768803,91500.0,91499.0,0.003]
[1763474451080,0.04768803,91500.0,91490.0,0.00027362]
[1763474451081,0.04549,91491.0,91490.0,0.00027362]
[1763474451485,0.04549,91459.0,91458.0,0.05779]
[1763474451693,0.0226,91459.0,91458.0,0.05779]
[1763474451981,0.00219803,91460.0,91459.0,0.04472]
[1763474452385,0.00229462,91460.0,91459.0,0.04472]
[1763474452588,0.00129462,91460.0,91459.0,0.04472]
[1763474452974,9.659e-05,91460.0,91459.0,0.04472]
[1763474453386,9.659e-05,91460.0,91459.0,0.04672]
[1763474453790,0.00016396,91469.0,91468.0,0.04472]
[1763474455185,0.04565396,91469.0,91459.0,0.003]
[1763474455484,0.04565396,91469.0,91468.0,0.04472]
[1763474455984,0.02276396,91469.0,91468.0,0.04572]
[1763474456292,0.02276396,91469.0,91468.0,0.04672]
[1763474458189,0.00016396,91469.0,91468.0,0.04672]
[1763474459591,0.26480344,91490.0,91489.0,0.02264]
[1763474459887,0.26673414,91490.0,91489.0,0.04443]
[1763474460277,0.0019307,91490.0,91489.0,0.04443]
[1763474460483,0.0463007,91490.0,91489.0,0.04443]
[1763474461183,0.0019307,91490.0,91489.0,0.04443]
[1763474461582,0.00016396,91499.0,91498.0,0.04443]
[1763474461986,0.02260396,91499.0,91498.0,0.04443]
[1763474462384,0.04453396,91499.0,91498.0,0.04443]
[1763474462587,0.00016396,91499.0,91498.0,0.04443]
[1763474462987,0.00116396,91499.0,91498.0,0.04443]
[1763474463387,0.00216396,91499.0,91498.0,0.04443]
[1763474464093,0.00116396,91499.0,91498.0,0.04443]
[1763474464890,0.04437,91486.0,91485.0,0.05816]
[1763474466287,0.0019307,91490.0,91489.0,0.04443]
[1763474467892,0.0243707,91490.0,91489.0,0.04443]
[1763474468586,0.0463007,91490.0,91489.0,0.04443]
[1763474469303,0.0463007,91490.0,91489.0,0.02264]
[1763474469599,0.0243707,91490.0,91489.0,0.04443]
[1763474470210,0.00016396,91499.0,91498.0,0.04443]
[1763474471690,0.00016396,91499.0,91485.0,0.01373]
[1763474471691,0.04453396,91499.0,91485.0,0.01373]
[1763474471893,0.0019307,91490.0,91489.0,0.04443]
[1763474472490,0.00216396,91499.0,91498.0,0.04443]
[1763474473296,0.00116396,91499.0,91498.0,0.04443]
[1763474473498,0.03926355,91519.0,91516.0,0.04443]
[1763474473696,0.08873353,91529.0,91519.0,0.04443]
[1763474473697,0.0243707,91520.0,91519.0,0.04443]
[1763474474000,0.0243707,91520.0,91510.0,0.01473]
[1763474474001,0.0463007,91520.0,91510.0,0.01373]
[1763474474192,0.04437,91511.0,91510.0,0.05916]
[1763474476902,0.04537,91511.0,91510.0,0.05916]
[1763474477405,0.04637,91511.0,91510.0,0.05916]
[1763474477900,0.04637,91511.0,91510.0,0.04543]
[1763474478102,0.04637,91511.0,91510.0,0.001]
[1763474478496,0.04437,91502.0,91501.0,0.04459396]
[1763474479002,0.04437,91502.0,91501.0,0.02280396]
[1763474479597,0.04437,91502.0,91501.0,0.04459396]
[1763474479902,0.02244,91502.0,91501.0,0.04459396]
[1763474480107,0.04537,91511.0,91510.0,0.05816]
[1763474480306,0.04537,91511.0,91510.0,0.05916]
[1763474480602,0.001,91511.0,91510.0,0.05916]
[1763474480808,0.04404,91511.0,91510.0,0.05916]
[1763474480996,0.02145,91511.0,91510.0,0.05916]
[1763474481796,0.02245,91511.0,91510.0,0.05916]
[1763474481999,0.04404,91511.0,91510.0,0.05916]
[1763474482810,0.04404,91511.0,91510.0,0.04543]
[1763474483011,0.04504,91511.0,91510.0,0.04543]
[1763474483695,0.04504,91511.0,91510.0,0.05843]
[1763474485411,0.04504,91511.0,91510.0,0.04543]
[1763474487002,0.04305,91502.0,91501.0,0.04333396]
[1763474487202,0.04305,91502.0,91501.0,0.02208396]
[1763474487817,0.04305,91502.0,91501.0,0.04333396]
[1763474490821,0.04305,91502.0,91501.0,0.00016396]
[1763474492608,0.04305,91502.0,91501.0,0.02208396]
[1763474492819,0.04305,91502.0,91501.0,0.04333396]
[1763474493217,0.04305,91502.0,91501.0,0.00016396]
[1763474493519,0.04405,91502.0,91501.0,0.00016396]
[1763474494013,0.04305,91491.0,91490.0,0.0569]
[1763474494208,0.04305,91491.0,91490.0,0.0579]
[1763474494409,0.03922255,91500.0,91498.0,0.04317]
[1763474494611,0.0019307,91500.0,91499.0,0.04317]
[1763474496020,0.0449807,91500.0,91499.0,0.04317]
[1763474496331,0.0019307,91500.0,91499.0,0.04317]
[1763474497218,0.00016396,91509.0,91508.0,0.04317]
[1763474499020,0.04305,91522.0,91521.0,0.0561]
[1763474499219,0.04305,91522.0,91521.0,0.04317]
[1763474499612,0.04305,91513.0,91512.0,0.04317]
[1763474499811,0.04305,91513.0,91512.0,0.7777]
[1763474501516,0.17586806,91522.0,91521.0,0.02192]
[1763474501718,0.04421396,91522.0,91521.0,0.38272]
[1763474501917,0.04421396,91522.0,91521.0,0.40397]
[1763474502714,0.04321396,91522.0,91521.0,0.40397]
[1763474503415,0.04421396,91522.0,91521.0,0.4169]
[1763474503714,0.00116396,91522.0,91521.0,0.4169]
[1763474504116,0.00016396,91522.0,91521.0,0.4169]
[1763474504620,0.03922255,91533.0,91532.0,0.04317]
[1763474504914,0.03922255,91537.0,91536.0,0.04317]
[1763474505115,0.1316541,91550.0,91536.0,0.04317]
[1763474505116,0.05868589,91539.0,91536.0,0.3608]
[1763474505310,0.07983589,91539.0,91538.0,0.04317]
[1763474505506,0.10190643,91539.0,91538.0,0.04317]
[1763474506110,0.04305,91539.0,91538.0,0.04317]
[1763474507009,0.04405,91539.0,91538.0,0.04317]
[1763474509221,0.04120232,91539.0,91538.0,0.04317]
[1763474509421,0.002,91539.0,91538.0,0.04317]
[1763474513523,0.04505,91539.0,91538.0,0.04317]
[1763474513823,0.002,91539.0,91538.0,0.04317]
[1763474514323,0.04505,91539.0,91538.0,0.04317]
[1763474520322,0.04505,91539.0,91536.0,0.3608]
[1763474520323,0.04263,91537.0,91536.0,0.3608]
[1763474521328,0.04263,91537.0,91536.0,0.3826]
[1763474521626,0.04263,91537.0,91536.0,0.41717]
[1763474521828,0.04363,91537.0,91536.0,0.41717]
[1763474522018,0.04463,91537.0,91536.0,0.41717]
[1763474522523,0.05508418,91537.0,91536.0,0.41717]
[1763474523216,0.0942865,91537.0,91536.0,0.41717]
[1763474523821,0.0942865,91537.0,91536.0,0.3608]
[1763474524025,0.05508418,91537.0,91536.0,0.3608]
[1763474524216,0.16432418,91537.0,91536.0,0.3258]
[1763474524422,0.16432418,91537.0,91504.0,0.05266158]
[1763474524423,0.10924,91536.0,91524.0,0.3608]
[1763474524716,0.10924,91536.0,91514.0,0.3608]
[1763474524717,0.01474,91515.0,91514.0,0.3608]
[1763474524924,0.01474,91506.0,91505.0,0.3608]
[1763474525422,0.02519418,91506.0,91505.0,0.3608]
[1763474525726,0.02519418,91506.0,91496.0,0.01354]
[1763474525727,0.01474,91497.0,91496.0,0.36096386]
[1763474525917,0.02519418,91497.0,91496.0,0.00016386]
[1763474526124,0.01474,91488.0,91487.0,0.3608]
[1763474526625,0.02519418,91488.0,91487.0,0.3608]
[1763474526832,0.06432582,91488.0,91487.0,0.3608]
[1763474527325,0.01474,91482.0,91478.0,0.00016396]
[1763474527527,0.02519418,91482.0,91481.0,0.36090366]
[1763474527735,0.02519418,91482.0,91481.0,0.40373366]
[1763474527924,0.02419418,91482.0,91481.0,0.40373366]
[1763474528126,0.02319418,91482.0,91481.0,0.40373366]
[1763474528927,0.01045418,91482.0,91481.0,0.40373366]
[1763474529121,0.00016396,91497.0,91496.0,0.04283]
[1763474529427,0.00016396,91497.0,91496.0,0.40363]
[1763474530227,0.00016396,91497.0,91496.0,0.76443]
[1763474530228,3.96e-06,91497.0,91496.0,0.76443]
[1763474531525,0.00100396,91497.0,91496.0,0.76443]